bitfinex/quotes_BTCUSD_20250604
["timestamp","ask_amount","ask_price","bid_price","bid_amount"]
[1749038373195,1.7155493,105080.0,105070.0,0.40432]
[1749038373432,1.7175493,105080.0,105070.0,0.40432]
[1749038373856,0.52567909,105080.0,105070.0,0.40532]
[1749038374059,1.7205493,105080.0,105070.0,0.40532]
[1749038376484,1.7205493,105080.0,105070.0,0.24792]
[1749038376682,1.7205493,105080.0,105070.0,0.40532]
[1749038377272,1.70024901,105080.0,105070.0,0.40532]
[1749038377486,1.72055882,105080.0,105070.0,0.40532]
[1749038381571,1.72055891,105080.0,105070.0,0.40532]
[1749038383608,1.78569163,105080.0,105070.0,0.40532]
[1749038383836,1.72055891,105080.0,105070.0,0.40532]
[1749038384304,1.78569466,105080.0,105070.0,0.40532]
[1749038385471,0.82193004,105080.0,105070.0,0.43732]
[1749038385720,0.81064738,105080.0,105070.0,0.43732]
[1749038385943,1.15064738,105080.0,105070.0,0.42192]
[1749038386595,1.54893745,105080.0,105070.0,0.42192]
[1749038387283,1.54893745,105080.0,105070.0,0.26216]
[1749038387756,1.64144867,105080.0,105070.0,0.26216]
[1749038387988,0.35406724,105080.0,105070.0,0.26216]
[1749038388205,1.54893745,105080.0,105070.0,0.24696]
[1749038388648,1.54893745,105080.0,105070.0,0.40436]
[1749038389960,1.54893228,105080.0,105070.0,0.40436]
[1749038390861,1.59525161,105080.0,105070.0,0.40436]
[1749038391308,1.59525161,105080.0,105070.0,0.24696]
[1749038391533,1.59525161,105080.0,105070.0,0.40432]
[1749038392655,1.59525161,105080.0,105070.0,0.24696]
[1749038392913,1.62755161,105080.0,105070.0,0.20544]
[1749038393158,1.72340591,105080.0,105070.0,0.40428]
[1749038393378,1.70690591,105080.0,105070.0,0.24692]
[1749038393603,1.70690591,105080.0,105070.0,0.40428]
[1749038393829,1.72270591,105080.0,105070.0,0.40428]
[1749038394076,1.71368384,105080.0,105070.0,0.40428]
[1749038394300,1.72270406,105080.0,105070.0,0.40428]
[1749038395671,1.7227038,105080.0,105070.0,0.40428]
[1749038395894,0.52783359,105080.0,105070.0,0.40428]
[1749038396114,1.73397876,105080.0,105070.0,0.40428]
[1749038396334,1.71368384,105080.0,105070.0,0.40428]
[1749038396812,0.4724943,105080.0,105070.0,0.40428]
[1749038397055,1.68765853,105080.0,105070.0,0.40428]
[1749038397942,1.67185853,105080.0,105070.0,0.40428]
[1749038398428,1.67186537,105080.0,105070.0,0.40428]
[1749038399564,1.65606537,105080.0,105070.0,0.40428]
[1749038399792,1.65272229,105080.0,105070.0,0.20544]
[1749038400033,1.65272229,105080.0,105070.0,0.40428]
[1749038400034,1.76879833,105080.0,105070.0,0.40428]
[1749038400291,0.84486389,105080.0,105070.0,0.40428]
[1749038400574,1.15064274,105080.0,105070.0,0.42068]
[1749038400805,1.15064274,105080.0,105070.0,0.43668]
[1749038401020,1.14162014,105080.0,105070.0,0.43668]
[1749038401255,1.23413136,105080.0,105070.0,0.43668]
[1749038401951,1.64144243,105080.0,105070.0,0.42068]
[1749038402414,1.65714243,105080.0,105070.0,0.40428]
[1749038402654,1.67254243,105080.0,105070.0,0.40428]
[1749038402892,1.65714243,105080.0,105070.0,0.40428]
[1749038403126,0.47887222,105080.0,105070.0,0.20544]
[1749038403388,1.68836177,105080.0,105070.0,0.20544]
[1749038403620,1.75353973,105080.0,105070.0,0.40428]
[1749038403850,1.75353973,105080.0,105070.0,0.20544]
[1749038404084,1.78902783,105080.0,105070.0,0.40428]
[1749038404340,0.5875429,105080.0,105070.0,0.20544]
[1749038404561,0.5875429,105080.0,105050.0,0.005]
[1749038404562,0.0316,105060.0,105050.0,0.005]
[1749038404794,1.71591825,105060.0,105050.0,0.25192]
[1749038405021,1.74778071,105060.0,105050.0,0.21044]
[1749038405235,1.75439402,105060.0,105050.0,0.25192]
[1749038405464,1.84029193,105060.0,105050.0,0.40928]
[1749038405917,1.84690453,105060.0,105050.0,0.40932825]
[1749038406142,1.84029193,105060.0,105050.0,0.40932825]
[1749038406377,1.86444513,105060.0,105050.0,0.21048825]
[1749038406632,1.86941107,105060.0,105050.0,0.21148825]
[1749038406908,1.89828426,105060.0,105050.0,0.41032825]
[1749038407153,3.13654241,105060.0,105050.0,0.25296825]
[1749038407385,0.34,105050.0,105040.0,0.0159569]
[1749038407615,0.56016552,105050.0,105040.0,0.01600516]
[1749038407831,0.99577285,105050.0,105040.0,0.01600516]
[1749038408576,0.99577285,105050.0,105040.0,0.17336516]
[1749038408825,0.90326163,105050.0,105040.0,0.17336516]
[1749038409058,0.90426163,105050.0,105040.0,0.17336516]
[1749038409524,1.28667482,105050.0,105020.0,0.00948187]
[1749038409756,1.13734468,105030.0,105020.0,0.00953013]
[1749038410259,1.23319898,105030.0,105020.0,0.16689013]
[1749038410473,1.24879898,105030.0,105020.0,0.16689013]
[1749038410704,0.44528813,105030.0,105020.0,0.16689013]
[1749038410939,1.24263281,105030.0,105020.0,0.16689013]
[1749038411158,1.24263281,105030.0,105020.0,0.00953013]
[1749038411379,1.27795504,105030.0,105020.0,0.16689013]
[1749038411603,1.27795504,105030.0,105020.0,0.00953013]
[1749038411892,1.27795504,105030.0,105020.0,0.16689013]
[1749038412142,1.27795504,105030.0,105020.0,0.00953013]
[1749038412361,1.27795504,105030.0,105020.0,0.16689013]
[1749038412576,1.27895504,105030.0,105020.0,0.16689013]
[1749038413048,1.29505504,105030.0,105020.0,0.00953013]
[1749038413272,1.29505504,105030.0,105020.0,0.16689013]
[1749038413273,1.29605504,105030.0,105020.0,0.16689013]
[1749038413528,0.75010617,105030.0,105020.0,0.19809013]
[1749038413756,0.74067234,105030.0,105020.0,0.19809013]
[1749038414216,0.74067234,105030.0,105020.0,0.54090443]
[1749038414217,0.002,105030.0,105020.0,0.54090443]
[1749038414694,0.001,105030.0,105020.0,0.54090443]
[1749038415147,0.002,105030.0,105020.0,0.54020443]
[1749038415616,0.7666237,105050.0,105020.0,0.50970443]
[1749038415948,0.73867234,105040.0,105030.0,0.1110543]
[1749038416230,0.73867234,105040.0,105030.0,0.2684143]
[1749038416464,0.341,105030.0,105020.0,0.23081013]
[1749038416692,0.34,105030.0,105020.0,0.44465013]
[1749038416929,0.73867234,105030.0,105020.0,0.44465013]
[1749038418095,0.73867234,105030.0,105020.0,0.24581013]
[1749038418321,0.73867234,105030.0,105020.0,0.44465013]
[1749038418565,0.73967234,105030.0,105020.0,0.44465013]
[1749038418783,0.002,105030.0,105020.0,0.44465013]
[1749038420903,0.002,105030.0,105020.0,0.54050443]
[1749038424548,0.002,105030.0,105020.0,0.93917677]
[1749038424807,0.002,105030.0,105020.0,0.74033677]
[1749038425060,0.002,105030.0,105020.0,0.54046443]
[1749038425576,0.39867234,105050.0,105020.0,0.54046443]
[1749038425832,0.39867234,105050.0,105020.0,0.44621013]
[1749038425833,0.001,105030.0,105020.0,0.44621013]
[1749038426100,0.002,105030.0,105020.0,0.54206443]
[1749038426639,0.002,105030.0,105020.0,0.34326443]
[1749038426906,0.002,105030.0,105020.0,0.54206443]
[1749038427241,0.001,105030.0,105020.0,0.54206443]
[1749038427451,0.5052133,105050.0,105030.0,0.0161]
[1749038427726,0.948717,105050.0,105040.0,0.15736]
[1749038427978,0.86465977,105050.0,105040.0,0.15736]
[1749038428422,0.86365977,105050.0,105040.0,0.15736]
[1749038428424,0.34,105040.0,105030.0,0.0958543]
[1749038428705,0.001,105030.0,105020.0,0.23421013]
[1749038429015,0.74766482,105040.0,105030.0,0.04144]
[1749038429263,0.74766656,105040.0,105030.0,0.07284]
[1749038429534,0.74766656,105040.0,105030.0,0.05714]
[1749038430503,0.74766656,105040.0,105030.0,0.07224]
[1749038430732,0.34899422,105040.0,105030.0,0.07224]
[1749038431214,0.35099422,105040.0,105030.0,0.05714]
[1749038431678,0.74966656,105040.0,105030.0,0.05631168]
[1749038431904,0.74966656,105040.0,105030.0,0.01487168]
[1749038431905,0.87000699,105040.0,105030.0,0.01487168]
[1749038432140,0.78386656,105040.0,105030.0,0.05631168]
[1749038432422,0.78386656,105040.0,105030.0,0.01487168]
[1749038432660,0.78386656,105040.0,105030.0,0.21367168]
[1749038432918,0.79510933,105040.0,105030.0,0.21367168]
[1749038433154,0.88466326,105040.0,105030.0,0.21367168]
[1749038433818,0.88466326,105040.0,105030.0,0.01487168]
[1749038433819,1.2833356,105040.0,105030.0,0.01487168]
[1749038434035,0.98051756,105040.0,105030.0,0.21363168]
[1749038434276,1.3791899,105040.0,105030.0,0.21363168]
[1749038435000,1.3791899,105040.0,105030.0,0.21367168]
[1749038435233,1.35895291,105040.0,105030.0,0.21367168]
[1749038435475,0.96028057,105040.0,105030.0,0.21367168]
[1749038435715,1.35895291,105040.0,105030.0,0.21367168]
[1749038436188,1.37921104,105040.0,105030.0,0.21367168]
[1749038436436,1.37921104,105040.0,105030.0,0.0086753]
[1749038436437,1.44375189,105040.0,105030.0,0.0086753]
[1749038436682,1.44375189,105040.0,105000.0,0.0328087]
[1749038436683,1.43545965,105040.0,105000.0,0.0328087]
[1749038436912,0.73867234,105010.0,105000.0,0.0328087]
[1749038437147,0.74767595,105010.0,105000.0,0.0328087]
[1749038437393,0.74767412,105010.0,105000.0,0.0328087]
[1749038438113,0.74767412,105010.0,105000.0,0.1901687]
[1749038438348,1.27410076,105010.0,105000.0,0.0328087]
[1749038438598,1.27610076,105010.0,105000.0,0.1901687]
[1749038439365,1.27610076,105010.0,105000.0,0.0328087]
[1749038439623,1.27610076,105010.0,105000.0,0.1901687]
[1749038439871,1.29035299,105010.0,105000.0,0.0328087]
[1749038440133,1.38086421,105010.0,105000.0,0.1901687]
[1749038440395,1.37986421,105010.0,105000.0,0.1901687]
[1749038440709,0.96549187,105010.0,105000.0,0.1901687]
[1749038440955,0.35500178,105010.0,105000.0,0.2066687]
[1749038441210,0.35500178,105010.0,105000.0,0.0493087]
[1749038441465,0.86561193,105010.0,105000.0,0.1901687]
[1749038441698,0.95217312,105010.0,105000.0,0.1901687]
[1749038441921,0.96727312,105010.0,105000.0,0.1901687]
[1749038442362,0.56860078,105010.0,105000.0,0.0328087]
[1749038442583,0.96727312,105010.0,105000.0,0.1901687]
[1749038443287,0.96727312,105010.0,105000.0,0.0328087]
[1749038443504,0.96727312,105010.0,105000.0,0.1901687]
[1749038443957,0.96727312,105010.0,105000.0,0.0328087]
[1749038444175,0.96727312,105010.0,105000.0,0.4371287]
[1749038444398,0.95217312,105010.0,105000.0,0.4371287]
[1749038444674,0.95221312,105010.0,105000.0,0.4371287]
[1749038445123,0.45087959,105010.0,105000.0,0.4371287]
[1749038445374,0.86605193,105010.0,105000.0,0.4371287]
[1749038445595,0.86604516,105010.0,105000.0,0.4371287]
[1749038445827,0.88104516,105010.0,105000.0,0.4371287]
[1749038446768,0.45087282,105010.0,105000.0,0.2797687]
[1749038446991,0.35501852,105010.0,105000.0,0.4688287]
[1749038447213,0.34604,105010.0,105000.0,0.4688287]
[1749038447895,0.34604,105010.0,105000.0,0.4688687]
[1749038449295,0.34604,105010.0,105000.0,0.2700287]
[1749038449517,0.85278143,105010.0,105000.0,0.2383287]
[1749038449749,0.85278143,105010.0,105000.0,0.4371687]
[1749038449979,0.83638143,105010.0,105000.0,0.4371687]
[1749038450344,0.82008143,105010.0,105000.0,0.4371687]
[1749038450599,0.74471234,105010.0,105000.0,0.4371687]
[1749038452305,0.34604,105010.0,105000.0,0.4371687]
[1749038452977,0.34604,105010.0,105000.0,0.4699687]
[1749038457324,0.34604,105010.0,105000.0,0.4371287]
[1749038457538,0.77721234,105010.0,105000.0,0.2383287]
[1749038457747,0.87241324,105010.0,105000.0,0.4371287]
[1749038457951,0.87241561,105010.0,105000.0,0.4371287]
[1749038458988,0.96826991,105010.0,105000.0,0.2797687]
[1749038459198,0.97950648,105010.0,105000.0,0.4371287]
[1749038459812,0.89329246,105010.0,105000.0,0.4371287]
[1749038460053,0.37122925,105010.0,105000.0,0.4371287]
[1749038460265,0.76990159,105010.0,105000.0,0.4371287]
[1749038460480,0.37122925,105010.0,105000.0,0.4371287]
[1749038460703,0.35502925,105010.0,105000.0,0.2383287]
[1749038460920,0.35502925,105010.0,105000.0,0.4371287]
[1749038461135,0.7537054,105010.0,105000.0,0.4371287]
[1749038461346,0.7692054,105010.0,105000.0,0.4371287]
[1749038461566,0.7850054,105010.0,105000.0,0.4371287]
[1749038461773,0.86463007,105010.0,105000.0,0.4371287]
[1749038462479,0.96048437,105010.0,105000.0,0.2383287]
[1749038462695,0.9717257,105010.0,105000.0,0.4371287]
[1749038463979,0.97153523,105010.0,105000.0,0.43603382]
[1749038464193,0.97153523,105010.0,105000.0,0.27867382]
[1749038464432,0.98651337,105010.0,105000.0,0.43603382]
[1749038464665,0.96627898,105010.0,105000.0,0.43603382]
[1749038464887,0.98652694,105010.0,105000.0,0.43603382]
[1749038466659,1.38519928,105010.0,105000.0,0.43643382]
[1749038466899,0.98652694,105010.0,105000.0,0.43643382]
[1749038468243,0.5878546,105010.0,105000.0,0.43643382]
[1749038468457,0.98652694,105010.0,105000.0,0.43643382]
[1749038468663,0.98652694,105010.0,105000.0,0.23723382]
[1749038468879,0.98653407,105010.0,105000.0,0.43655382]
[1749038469333,1.44974726,105010.0,105000.0,0.23723382]
[1749038469550,1.43849443,105010.0,105000.0,0.41420196]
[1749038469738,1.4434605,105010.0,105000.0,0.41420196]
[1749038470232,1.4414605,105010.0,105000.0,0.41420196]
[1749038470455,1.4454605,105010.0,105000.0,0.41420196]
[1749038471155,1.4414605,105010.0,105000.0,0.21492196]
[1749038471379,1.4474605,105010.0,105000.0,0.21492196]
[1749038471598,1.4474605,105010.0,105000.0,0.41416196]
[1749038471599,1.38291965,105010.0,105000.0,0.41416196]
[1749038472554,1.38291965,105010.0,105000.0,0.21492196]
[1749038472815,1.38291965,105010.0,105000.0,0.41440196]
[1749038473062,1.38291307,105010.0,105000.0,0.41440196]
[1749038473547,1.38291307,105010.0,105000.0,0.21492196]
[1749038473787,1.39745392,105010.0,105000.0,0.21492196]
[1749038474019,1.39745392,105010.0,105000.0,0.41444196]
[1749038474254,0.60010924,105010.0,105000.0,0.41444196]
[1749038474490,1.39745392,105010.0,105000.0,0.41444196]
[1749038474971,0.60010924,105010.0,105000.0,0.41444196]
[1749038475208,1.39745392,105010.0,105000.0,0.41444196]
[1749038475914,1.39745392,105010.0,105000.0,0.41456196]
[1749038476868,1.38845824,105010.0,105000.0,0.41456196]
[1749038477107,1.39744968,105010.0,105000.0,0.41456196]
[1749038477434,0.59680439,105010.0,105000.0,0.41456196]
[1749038477674,0.99547673,105010.0,105000.0,0.41456196]
[1749038477912,0.98049859,105010.0,105000.0,0.41456196]
[1749038478827,1.37917093,105010.0,105000.0,0.41448196]
[1749038479996,1.40868992,105010.0,105000.0,0.41444196]
[1749038480675,1.40868992,105010.0,105000.0,0.21492196]
[1749038480921,1.40868992,105010.0,105000.0,0.41440196]
[1749038481145,1.4086912,105010.0,105000.0,0.41440196]
[1749038481392,1.4086912,105010.0,105000.0,0.21492196]
[1749038481635,0.0315,104990.0,104980.0,0.104]
[1749038481873,0.96534229,104990.0,104980.0,0.50932]
[1749038482103,0.59843225,104990.0,104980.0,0.50932]
[1749038482318,0.99710459,104990.0,104980.0,0.50932]
[1749038482537,1.02568226,104990.0,104980.0,0.50932]
[1749038482758,1.09022311,104990.0,104980.0,0.50944]
[1749038483007,1.09422311,104990.0,104980.0,0.50944]
[1749038483261,1.09422311,104990.0,104980.0,0.509923]
[1749038483682,0.58885992,104990.0,104980.0,0.509923]
[1749038483962,0.92258119,104990.0,104980.0,0.509923]
[1749038484179,0.92858119,104990.0,104980.0,0.509923]
[1749038484409,0.93981769,104990.0,104980.0,0.510443]
[1749038484928,0.93981769,104990.0,104980.0,0.510483]
[1749038485176,1.03729498,104990.0,104980.0,0.510483]
[1749038485385,1.03729498,104990.0,104980.0,0.510443]
[1749038485603,1.05183583,104990.0,104980.0,0.310043]
[1749038485825,1.09059933,104990.0,104980.0,0.510403]
[1749038486275,0.64192699,104990.0,104980.0,0.310043]
[1749038486495,1.04059933,104990.0,104980.0,0.310043]
[1749038486714,1.04059933,104990.0,104980.0,0.510403]
[1749038487621,1.02219897,104990.0,104980.0,0.510403]
[1749038489033,0.49963074,104990.0,104980.0,0.510403]
[1749038489241,0.89830308,104990.0,104980.0,0.510403]
[1749038492419,0.89830308,104990.0,104980.0,0.310043]
[1749038492639,0.91350308,104990.0,104980.0,0.510443]
[1749038493109,0.51483074,104990.0,104980.0,0.510443]
[1749038493348,0.9680346,104990.0,104980.0,0.510443]
[1749038493573,0.96804338,104990.0,104980.0,0.510443]
[1749038494535,0.96804338,104990.0,104980.0,0.510403]
[1749038494536,0.95284338,104990.0,104980.0,0.510403]
[1749038495479,0.15963952,104990.0,104980.0,0.542503]
[1749038495730,0.04757388,104990.0,104980.0,0.542503]
[1749038495962,0.44624622,104990.0,104980.0,0.542503]
[1749038496448,0.78624622,104990.0,104980.0,0.542503]
[1749038497421,0.77725001,104990.0,104980.0,0.542503]
[1749038497642,0.78625045,104990.0,104980.0,0.542503]
[1749038497888,0.35900044,104990.0,104980.0,0.542503]
[1749038498692,0.01,104990.0,104980.0,0.94117534]
[1749038498698,0.01,104990.0,104980.0,0.370722]
[1749038498932,0.01,104990.0,104980.0,0.6690563]
[1749038499624,0.34,105000.0,104980.0,0.6690563]
[1749038499838,0.34,105000.0,104990.0,0.0313]
[1749038500326,0.00904238,105010.0,105000.0,0.0322]
[1749038500548,0.39871234,105010.0,105000.0,0.1926]
[1749038501441,0.40471234,105010.0,105000.0,0.1926]
[1749038502557,0.40971234,105010.0,105000.0,0.1926]
[1749038503648,0.01104,105010.0,105000.0,0.1926]
[1749038503913,0.74971234,105010.0,105000.0,0.1926]
[1749038504772,0.73871234,105010.0,105000.0,0.1926]
[1749038504981,0.74171234,105010.0,105000.0,0.1926]
[1749038505878,0.74171234,105010.0,105000.0,0.0322]
[1749038506117,0.74171234,105010.0,105000.0,0.19228]
[1749038506550,0.74671234,105010.0,105000.0,0.19228]
[1749038507203,0.74671234,105010.0,105000.0,0.0322]
[1749038507450,0.82138357,105010.0,105000.0,0.16004]
[1749038507696,0.74671234,105010.0,105000.0,0.0155]
[1749038507785,0.74671234,105010.0,105000.0,0.21758]
[1749038507991,0.74671234,105010.0,105000.0,0.20208]
[1749038508193,0.82743832,105010.0,105000.0,0.20208]
[1749038508834,0.34,105000.0,104990.0,0.0317]
[1749038509099,0.73867234,105000.0,104990.0,0.23374]
[1749038510253,0.74167234,105000.0,104990.0,0.23374]
[1749038511108,0.74367234,105000.0,104990.0,0.23374]
[1749038512003,0.40367234,105000.0,104990.0,0.23374]
[1749038513779,0.005,105000.0,104990.0,0.23374]
[1749038514026,0.345,105000.0,104990.0,0.23374]
[1749038516861,0.005,105000.0,104990.0,0.3295943]
[1749038517085,0.345,105000.0,104990.0,0.3295943]
[1749038517997,0.005,105000.0,104990.0,0.3295943]
[1749038518676,0.005,105000.0,104990.0,0.3302343]
[1749038520512,0.005,105000.0,104990.0,0.3302743]
[1749038521908,0.003,105000.0,104990.0,0.3302743]
[1749038522348,0.00804,105000.0,104990.0,0.3302743]
[1749038522874,0.00504,105000.0,104990.0,0.3302743]
[1749038523089,0.01104,105000.0,104990.0,0.3302743]
[1749038524168,0.01104,105000.0,104990.0,0.1275543]
[1749038524399,0.01104,105000.0,104990.0,0.33261504]
[1749038524607,0.01104,105000.0,104990.0,0.3302343]
[1749038528783,0.01104,105000.0,104990.0,0.1704343]
[1749038529008,0.35104,105000.0,104990.0,0.3301543]
[1749038529444,0.35104,105000.0,104990.0,0.3302743]
[1749038529651,0.35104,105000.0,104990.0,0.3150343]
[1749038530088,0.35104,105000.0,104990.0,0.1552343]
[1749038530297,0.35104,105000.0,104990.0,0.3150343]
[1749038531365,0.35104,105000.0,104990.0,0.1123543]
[1749038531576,0.35104,105000.0,104990.0,0.3149543]
[1749038531790,0.35104,105000.0,104990.0,0.0958543]
[1749038532004,0.35104,105000.0,104990.0,0.3134543]
[1749038532442,0.35104,105000.0,104990.0,0.3295543]
[1749038533322,0.01104,105000.0,104990.0,0.3295543]
[1749038537241,0.01104,105000.0,104990.0,0.3293543]
[1749038541498,0.01104,105000.0,104990.0,0.72802664]
[1749038542795,0.01104,105000.0,104990.0,0.3293543]
[1749038544931,0.01104,105000.0,104990.0,0.1698343]
[1749038545147,0.01104,105000.0,104990.0,0.3289143]
[1749038546250,0.01104,105000.0,104990.0,0.1269543]
[1749038546463,0.01104,105000.0,104990.0,0.3283943]
[1749038549000,0.01104,105000.0,104990.0,0.34293515]
[1749038549928,0.01104,105000.0,104990.0,0.74160749]
[1749038553652,0.01104,105000.0,104990.0,0.77017549]
[1749038553923,0.01104,105000.0,104990.0,1.17017549]
[1749038554367,0.01104,105000.0,104990.0,1.16989549]
[1749038554818,0.01104,105000.0,104990.0,0.77122315]
[1749038555279,0.01104,105000.0,104990.0,0.3749143]
[1749038555502,0.01104,105000.0,104990.0,0.3324743]
[1749038555730,0.01104,105000.0,104990.0,0.5177343]
[1749038556442,0.02644,105000.0,104990.0,0.3013743]
[1749038556673,0.36644,105000.0,104990.0,0.3013743]
[1749038556896,0.36644,105000.0,104990.0,0.5026943]
[1749038557831,0.02644,105000.0,104990.0,0.3013743]
[1749038558066,0.01104,105000.0,104990.0,0.5026143]
[1749038558299,0.35104,105000.0,104990.0,0.3013743]
[1749038558771,0.76471234,105000.0,104990.0,0.3013743]
[1749038558996,0.38134,105000.0,104990.0,0.5025743]
[1749038559222,0.78001234,105000.0,104990.0,0.5025743]
[1749038559445,0.78001234,105000.0,104990.0,0.3013743]
[1749038559932,0.78001234,105000.0,104990.0,0.5025343]
[1749038560199,0.78001234,105000.0,104990.0,0.5024943]
[1749038560655,0.04134,105000.0,104990.0,0.5024943]
[1749038560897,0.38134,105000.0,104990.0,0.5024943]
[1749038561127,0.78001234,105000.0,104990.0,0.3438143]
[1749038561365,0.78001234,105000.0,104990.0,0.5028543]
[1749038561597,0.78001234,105000.0,104990.0,0.5028143]
[1749038561883,0.38134,105000.0,104990.0,0.5028543]
[1749038566830,0.38134,105000.0,104990.0,0.3013743]
[1749038567055,0.38134,105000.0,104990.0,0.5028543]
[1749038567288,0.38134,105000.0,104990.0,0.3013743]
[1749038567538,0.38134,105000.0,104990.0,0.5028543]
[1749038568239,0.36604,105000.0,104990.0,0.5028543]
[1749038568470,0.38144,105000.0,104990.0,0.248]
[1749038568700,0.36604,105000.0,104990.0,0.5028143]
[1749038569447,0.36604,105000.0,104990.0,0.5029343]
[1749038569673,0.35104,105000.0,104990.0,0.5029343]
[1749038569881,0.35104,105000.0,104990.0,0.3013743]
[1749038570101,0.35104,105000.0,104990.0,0.5028943]
[1749038570328,0.36664,105000.0,104990.0,0.3013743]
[1749038570552,0.38234,105000.0,104990.0,0.3438543]
[1749038570781,0.78101234,105000.0,104990.0,0.20552]
[1749038571005,0.78101234,105000.0,104990.0,0.407]
[1749038571299,0.38234,105000.0,104990.0,0.20552]
[1749038571493,0.85911757,105000.0,104990.0,0.40704]
[1749038571706,0.86812521,105000.0,104990.0,0.20552]
[1749038571931,0.86812521,105000.0,104990.0,0.40704]
[1749038572383,0.85911757,105000.0,104990.0,0.40704]
[1749038572634,0.86812296,105000.0,104990.0,0.40704]
[1749038572864,0.86812296,105000.0,104990.0,0.40708]
[1749038573095,0.79001773,105000.0,104990.0,0.40708]
[1749038574035,0.79001773,105000.0,104990.0,0.20552]
[1749038574301,0.79001773,105000.0,104990.0,0.407]
[1749038575507,0.79001773,105000.0,104990.0,0.4068]
[1749038576669,0.79000926,105000.0,104990.0,0.4068]
[1749038576966,0.78101234,105000.0,104990.0,0.4068]
[1749038577175,0.79000779,105000.0,104990.0,0.4068]
[1749038578094,0.79000656,105000.0,104990.0,0.4068]
[1749038578585,0.35104,105000.0,104990.0,0.4068]
[1749038578833,0.01104,105000.0,104990.0,0.4068]
[1749038579103,0.35104,105000.0,104990.0,0.4068]
[1749038579912,0.74971234,105000.0,104990.0,0.5026543]
[1749038580180,0.74971234,105000.0,104990.0,0.5180543]
[1749038581012,0.35104,105000.0,104990.0,0.5341543]
[1749038582026,0.35104,105000.0,104990.0,0.54869515]
[1749038582583,0.35104,105000.0,104990.0,0.34493515]
[1749038582841,0.01104,105000.0,104990.0,0.38729515]
[1749038583110,0.01104,105000.0,104990.0,0.34493515]
[1749038583406,0.01104,105000.0,104990.0,0.78596749]
[1749038583618,0.01104,105000.0,104990.0,0.81453649]
[1749038583878,0.01104,105000.0,104990.0,0.57486415]
[1749038584413,0.01104,105000.0,104990.0,0.97349649]
[1749038584844,0.01104,105000.0,104990.0,0.57482415]
[1749038585771,0.01104,105000.0,104990.0,0.37350415]
[1749038586037,0.01104,105000.0,104990.0,0.57482415]
[1749038586253,0.01104,105000.0,104990.0,0.37350415]
[1749038586477,0.01104,105000.0,104990.0,0.57490415]
[1749038587180,0.01104,105000.0,104990.0,0.37350415]
[1749038587418,0.01104,105000.0,104990.0,0.57486415]
[1749038588418,0.01104,105000.0,104990.0,0.97353649]
[1749038588659,0.01104,105000.0,104990.0,0.57490415]
[1749038589819,0.01104,105000.0,104990.0,0.57494415]
[1749038596796,0.01104,105000.0,104990.0,0.5604033]
[1749038597043,0.01104,105000.0,104990.0,0.57494415]
[1749038597512,4e-05,105010.0,104990.0,1.31361649]
[1749038597738,4e-05,105010.0,105000.0,1.22837899]
[1749038597968,4e-05,105010.0,105000.0,0.82732664]
[1749038598452,4e-05,105010.0,105000.0,0.1572183]
[1749038598682,4e-05,105010.0,105000.0,0.55589064]
[1749038599173,0.00104,105010.0,105000.0,0.55789064]
[1749038599621,0.00104,105010.0,105000.0,0.3606583]
[1749038599846,0.00204,105010.0,105000.0,0.3606583]
[1749038600735,0.00204,105010.0,105000.0,0.37519915]
[1749038601479,0.00204,105010.0,105000.0,0.38458964]
[1749038602816,0.00204,105010.0,105000.0,0.38442964]
[1749038603037,0.00204,105010.0,105000.0,0.22550964]
[1749038603254,0.00204,105010.0,105000.0,0.78442964]
[1749038604196,0.00204,105010.0,105000.0,1.09010964]
[1749038604417,0.00204,105010.0,105000.0,0.98990964]
[1749038604670,0.00204,105010.0,105000.0,0.58990964]
[1749038605347,0.00204,105010.0,105000.0,0.38862964]
[1749038605613,0.00204,105010.0,105000.0,0.59042964]
[1749038606781,0.00204,105010.0,105000.0,0.98910198]
[1749038607470,0.00204,105010.0,105000.0,1.42930198]
[1749038607686,0.00204,105010.0,105000.0,1.62382198]
[1749038608383,0.00204,105010.0,105000.0,1.58126198]
[1749038608847,0.00204,105010.0,105000.0,1.98126198]
[1749038613269,0.00204,105010.0,105000.0,2.67993432]
[1749038614240,0.00136453,105010.0,105000.0,2.9220803]
[1749038614910,0.00036453,105010.0,105000.0,2.9220803]
[1749038615136,0.00136453,105010.0,105000.0,2.9250803]
[1749038615358,0.001,105010.0,105000.0,2.9230803]
[1749038615586,0.002,105010.0,105000.0,2.9260803]
[1749038616072,0.002,105010.0,105000.0,2.7206003]
[1749038616300,0.0312,105050.0,105030.0,0.03104085]
[1749038616522,0.0312,105050.0,105040.0,0.2974943]
[1749038616975,0.42987234,105050.0,105040.0,0.34059115]
[1749038617417,0.0312,105050.0,105040.0,0.34059115]
[1749038617677,0.03129165,105050.0,105040.0,0.34059115]
[1749038618578,0.03329165,105050.0,105040.0,0.34059115]
[1749038618804,0.03629165,105050.0,105040.0,0.34159115]
[1749038619472,0.37629165,105050.0,105040.0,0.34159115]
[1749038621770,0.03629165,105050.0,105040.0,0.34159115]
[1749038623593,0.00509165,105050.0,105040.0,0.34159115]
[1749038623816,0.00513165,105050.0,105040.0,0.34159115]
[1749038624282,0.00513165,105050.0,105040.0,0.54703115]
[1749038631190,0.03603165,105050.0,105040.0,0.54703115]
[1749038631685,0.03603165,105050.0,105040.0,0.34539115]
[1749038631914,0.43470399,105050.0,105040.0,0.20644]
[1749038632147,0.43470399,105050.0,105040.0,0.4078]
[1749038632373,0.77470399,105050.0,105040.0,0.4078]
[1749038632830,0.37603165,105050.0,105040.0,0.4078]
[1749038633050,0.37603165,105050.0,105040.0,0.20644]
[1749038633051,0.77470399,105050.0,105040.0,0.20644]
[1749038633291,0.77470399,105050.0,105040.0,0.4078]
[1749038634727,0.77470399,105050.0,105040.0,0.5036543]
[1749038634937,0.03603165,105050.0,105040.0,0.5036543]
[1749038635811,0.03603165,105050.0,105040.0,0.31683515]
[1749038636017,0.02073165,105050.0,105040.0,0.81831515]
[1749038636228,0.03683165,105050.0,105040.0,0.51827515]
[1749038636435,0.02073165,105050.0,105040.0,0.31683515]
[1749038636640,0.03683165,105050.0,105040.0,0.51835515]
[1749038636845,0.00513165,105050.0,105040.0,0.51835515]
[1749038637084,0.00513165,105050.0,105040.0,0.81831515]
[1749038637310,0.00513165,105050.0,105040.0,0.51831515]
[1749038637779,0.03613165,105050.0,105040.0,0.51827515]
[1749038637987,0.03613165,105050.0,105040.0,0.31683515]
[1749038638206,0.03613165,105050.0,105040.0,0.51827515]
[1749038638424,0.03613165,105050.0,105040.0,0.31683515]